Cogmind - Beta 10.2 @@@ ROGUE MODE // 2021.10.26 @ 18:27:19 Player: Burgers_Lettuce Result: Destroyed by Y-64 Sentinel with Wave Gun Performance ------------- Evolutions (5) 2500 Regions Visited (10) 2000 Robots Destroyed (56) 280 Value Destroyed (1960) 1960 Prototype IDs (3) 60 Alien Tech Used (0) 0 Bonus (688) 688 TOTAL SCORE: 7488 Bonus ------- Pacifist 200 Follower Combat Kills 188 Aligned with FarCom 300 Cogmind --------- Core Integrity 0/1000 Matter 109/300 Energy 150/150 System Corruption 19% Temperature Cool (9) Movement Walking (150) Ox1 Location -5/Factory Parts ------- > --- POWER (4) -------- Light Angular Momentum Engine > --- PROPULSION (3) --- Carbon-fiber Leg Carbon-fiber Leg Gyrokinetic Inverter > --- UTILITY (6) ------ Advanced Heat Sink Advanced Heat Sink Improved Coolant Injector System Backup Module System Backup Module System Backup Module > --- WEAPON (4) ------- Coil Gun Long-range Missile Launcher Heavy Flail Phasing Sabre > --- INVENTORY (4) ---- Improved Component Analysis Suite Peak State ------------ > --- POWER ------------ Improved Deuterium Engine Angular Momentum Engine > --- PROPULSION ------- Heavy Treads Wheel > --- UTILITY ---------- Advanced Heat Sink Improved Coolant Injector Medium Storage Unit Advanced ECM Suite Focal Shield System Shield > --- WEAPON ----------- Heavy Flail Phasing Sabre Phasing Sabre Phasing Sabre > --- INVENTORY -------- Improved Gravmag System Advanced Terrain Scan Processor Wave Gun Enhanced Nova Cannon Coil Gun Long-range Missile Launcher [Rating: 71] Favorites ----------- Power Improved Deuterium Engine Engine Improved Deuterium Engine Propulsion Wheel Treads Advanced Treads Leg Flexi-carbon Leg Wheel Wheel Hover Unit Improved Gravmag System Flight Unit Nuclear Pulse Thruster Utility Focal Shield Device Focal Shield Storage Medium Storage Unit Processor Improved Terrain Scan Processor Hackware System Shield Protection Hardened Heavy Armor Plating Weapon Phasing Sabre Energy Gun Shock Rifle Energy Cannon Heavy Plasma Cannon Ballistic Gun Light Assault Rifle Ballistic Cannon Bore Cannon Launcher Long-range Missile Launcher Special Weapon Mining Laser Impact Weapon Heavy Flail Slashing Weapon Phasing Sabre Build | -11 -10 -9 -9 -9 -8 -8 -7 -6 -6 -5 ------- Run | Scr Mat Mat Min Exi Min Mat Fac Fac Ext Fac Slots Evolved 10 | . . 2 . . . 2 2 2 . 2 Power 3 | . . . . . . . 1 2 . . Propulsion 1 | . . 1 . . . . . . . . Utility 4 | . . . . . . 1 1 . . 2 Weapon 2 | . . 1 . . . 1 . . . . Parts Attached 123 | 6 2 9 . 4 . 2 11 22 26 41 Power 9 | 1 . . . . . . 1 1 3 3 Engine 9 | 1 . . . . . . 1 1 3 3 Core . | . . . . . . . . . . . Reactor . | . . . . . . . . . . . Propulsion 31 | 2 . 3 . . . . 3 6 9 8 Treads 7 | 1 . 1 . . . . 2 . . 3 Leg 5 | . . . . . . . . 1 2 2 Wheel 8 | 1 . 2 . . . . 1 . 4 . Hover 9 | . . . . . . . . 4 3 2 Flight 2 | . . . . . . . . 1 . 1 Utility 40 | 1 . 2 . 2 . 1 2 9 5 18 Device 28 | . . 1 . 1 . 1 1 6 3 15 Storage 2 | 1 . . . . . . . . 1 . Processor 6 | . . 1 . 1 . . 1 1 1 1 Hackware 2 | . . . . . . . . 1 . 1 Protection 2 | . . . . . . . . 1 . 1 Artifact . | . . . . . . . . . . . Weapon 43 | 2 2 4 . 2 . 1 5 6 9 12 Energy Gun 5 | 1 . 2 . 1 . . 1 . . . Energy Cannon 4 | . . . . 1 . . 1 1 . 1 Ballistic Gun 12 | 1 1 1 . . . 1 2 3 2 1 Ballistic Cannon 2 | . . . . . . . . . 2 . Launcher 4 | . . . . . . . 1 1 . 2 Special Weapon 5 | . 1 1 . . . . . . . 3 Impact Weapon 6 | . . . . . . . . . 2 4 Slashing Weapon 5 | . . . . . . . . 1 3 1 Piercing Weapon . | . . . . . . . . . . . Special Melee Weapon . | . . . . . . . . . . . Unidentified Prototypes 3 | . . . . 3 . . . . . . Parts Lost 49 | . . . . . . . 15 8 6 20 Power 5 | . . . . . . . 2 1 . 2 Propulsion 12 | . . . . . . . 3 2 3 4 Utility 19 | . . . . . . . 3 5 1 10 Weapon 13 | . . . . . . . 7 . 2 4 Highest Loss Streak 8 | . . . . . . . 8 3 4 5 Average Slot Usage (%) 64 | . 84 97 100 98 100 95 78 31 65 61 Engine 5 | . 14 11 11 11 11 9 10 1 2 5 Treads 3 | . 14 11 11 11 11 9 7 . . 3 Wheel 5 | . 14 22 22 22 22 18 7 . 5 1 Hover 4 | . . . . . . . . 11 6 2 Device 8 | . . 2 11 5 . 4 6 4 10 13 Storage 4 | . 14 11 11 11 11 9 6 . 4 4 Processor 5 | . . 6 . 4 11 9 11 2 8 2 Energy Gun 2 | . 11 11 11 9 11 9 4 . . . Ballistic Gun 6 | . 13 10 11 11 11 18 18 3 2 . Special Weapon 1 | . 3 11 11 11 11 9 1 . . 1 Impact Weapon 2 | . . . . . . . . . 5 4 Slashing Weapon 6 | . . . . . . . . . 9 12 Naked Turns 120 | . . . . . . . 87 33 . . Heaviest Build 52 | 13 13 21 21 23 16 18 32 40 51 52 Greatest Support 70 | 10 10 20 20 20 20 20 28 42 28 70 Greatest Overweight (x) 14 | 1 1 1 1 1 . . 10 1 14 4 Average Overweight (x) . | . 1 . 1 . . . . . 1 . Largest Inventory Capacity 8 | 6 6 6 6 6 6 6 6 4 8 8 Average Capacity 6 | 5 6 6 6 6 6 6 5 4 6 7 Most Carried 8 | 3 6 6 6 6 6 5 6 4 8 8 Average Carried 5 | 2 5 5 6 6 6 5 5 3 5 6 Final Capacity 8 | 6 6 6 6 6 6 6 4 4 8 4 Final Carried 8 | 3 6 6 6 6 6 5 4 4 8 1 Class Distribution -------------------- 64% | Mutant 18% | Skirmisher 14% | Scavenger-Mutant Dominant Class ---------------- Mutant | -10/Materials Skirmisher | -9/Materials Mutant | -9/Mines Mutant | -9/Exiles Mutant | -8/Mines Skirmisher | -8/Materials Skirmisher | -7/Factory Mutant | -6/Factory Scavenger-Mutant | -6/Extension Mutant | -5/Factory Resources | -11 -10 -9 -9 -9 -8 -8 -7 -6 -6 -5 ----------- Run | Scr Mat Mat Min Exi Min Mat Fac Fac Ext Fac Matter Collected 2054 | 227 . 158 . . 69 30 322 . 726 522 Remotely . | . . . . . . . . . . . Salvage Created 2412 | . . 200 110 . 46 41 484 72 661 798 Parts 114 | . . 11 1 . 7 6 36 2 20 31 Haulers Intercepted . | . . . . . . . . . . . Recyclers Shooed 3 | . . . . . . . 1 1 . 1 Parts Field Recycled . | . . . . . . . . . . . Retrieved Matter . | . . . . . . . . . . . Parts Self-Destructed . | . . . . . . . . . . . Prevented . | . . . . . . . . . . . Kills | -11 -10 -9 -9 -9 -8 -8 -7 -6 -6 -5 ------- Run | Scr Mat Mat Min Exi Min Mat Fac Fac Ext Fac Combat Hostiles Destroyed 44 | . . 6 2 . 3 3 11 2 7 10 Melee 8 | . . . . . . . . . 3 5 Guns 23 | . . 6 2 . 3 3 8 . . 1 Cannons 4 | . . . . . . . . 1 3 . AOE 7 | . . . . . . . 3 1 . 3 Classes Destroyed 12 | . . 3 1 . . . 2 . 3 3 Worker 3 | . . . . . . . . . . 3 Builder 3 | . . . . . . . . . 3 . Tunneler 1 | . . . . . . . . . . 1 Recycler 4 | . . . . . . . . . 2 2 Watcher 1 | . . . . . . . . . . 1 Swarmer 12 | . . 3 . . 3 3 3 . . . Grunt 15 | . . 2 1 . . . 3 . 4 5 Brawler 2 | . . . 1 . . . . 1 . . Duelist 1 | . . . . . . . . . 1 . Sentry 6 | . . 1 . . . . 2 . 1 2 Hunter 2 | . . . . . . . 1 . . 1 Programmer 5 | . . . . . . . 2 1 . 2 Guerrilla 1 | . . . . . . . . . 1 . Best Kill Streak 6 | . . 3 2 . 3 3 3 1 3 6 Combat Bots Only 3 | . . 3 2 . 3 3 3 1 1 3 Max Kills in Single Turn 3 | . . 1 1 . 2 1 2 1 1 3 Gunslinging 1 | . . . . . 1 . . . . . Exploded 2 | . . . . . . . 2 1 . 1 Melee 1 | . . . . . . . . . 1 1 Uniques/NPCs Destroyed . | . . . . . . . . . . . Combat | -11 -10 -9 -9 -9 -8 -8 -7 -6 -6 -5 -------- Run | Scr Mat Mat Min Exi Min Mat Fac Fac Ext Fac Damage Taken 7379 | . . 80 31 . 63 28 1522 1409 741 3505 Core 2098 | . . . 20 . 6 9 367 587 107 1002 Absorbed by Shields 6 | . . 6 . . . . . . . . Core Remaining (%) 76 | 100 100 . . . 93 98 47 . 18 . Volleys Fired 198 | . 2 7 7 . 4 3 38 52 37 48 Largest 4 | . 2 3 2 . 2 3 4 3 1 2 Hottest 193 | . 70 173 100 . 100 93 193 146 57 120 Shots Fired 326 | . 4 16 11 . 7 9 121 62 39 57 Gun 182 | . 4 14 8 . 6 9 112 14 1 14 Cannon 94 | . . . . . . . 6 44 38 6 Launcher 14 | . . . . . . . 3 4 . 7 Special 36 | . . 2 3 . 1 . . . . 30 Kinetic 175 | . 2 7 4 . 3 6 86 14 39 14 Thermal 105 | . 2 5 3 . 1 . 14 44 . 36 Explosive 14 | . . . . . . . 3 4 . 7 Electromagnetic 32 | . . 4 4 . 3 3 18 . . . Robot Hit Streak 14 | . 2 7 5 . 7 1 11 14 3 6 Robot Miss Streak 8 | . 2 1 2 . . 2 6 1 7 8 Penetration Max 1 | . . . . . . . . 1 . 1 Secondary Targets 4 | . . 1 1 . 1 1 . . . . Max Gunslinging Chain 1 | . . 1 1 . 1 1 . . . . Shots Hit Robots 232 | . 2 10 5 . 5 3 85 15 32 75 Core Hits 105 | . 1 7 2 . 3 3 35 9 15 30 Critical Hits 12 | . . . . . . . . . 11 1 Critical Kills 5 | . . . . . . . . . 5 . Critical Parts Destroyed 7 | . . . . . . . . . 6 1 Melee Attacks 148 | . . . . . . . . . 28 120 Impact 81 | . . . . . . . . . 7 74 Slashing 67 | . . . . . . . . . 21 46 Piercing . | . . . . . . . . . . . Sneak Attacks 6 | . . . . . . . . . 5 1 Combat Hostiles . | . . . . . . . . . . . Follow-up Attacks 24 | . . . . . . . . . 5 19 Damage Inflicted 6846 | . 20 171 97 . 78 34 1202 545 1492 3207 Guns 1771 | . 20 171 97 . 78 34 935 146 . 290 Cannons 739 | . . . . . . . 27 203 299 210 Explosions 1173 | . . . . . . . 205 133 . 835 Melee 3062 | . . . . . . . . . 1190 1872 Ramming 101 | . . . . . . . 35 63 3 . Kinetic 1512 | . 8 65 31 . 32 20 621 146 299 290 Thermal 623 | . 12 38 . . . . 160 203 . 210 Explosive 1173 | . . . . . . . 205 133 . 835 Electromagnetic 375 | . . 68 66 . 46 14 181 . . . Impact 952 | . . . . . . . . . 374 578 Slashing 2110 | . . . . . . . . . 816 1294 Piercing . | . . . . . . . . . . . Highest Corruption 22 | . . 2 2 2 2 . 5 7 9 22 Average Corruption 7 | . . 2 2 2 2 . 2 5 8 17 Corruption Purged 3 | . . . . . . . . . . 3 Effects 142 | . . 2 1 1 2 . 6 18 63 49 Message Errors 28 | . . . 1 . . . 1 2 15 9 Matter Fused 24 | . . . . . . . 1 4 14 5 Heat Flow Errors 16 | . . . . . 1 . . 2 10 3 Energy Discharges 14 | . . 1 . 1 . . . 3 4 5 Parts Rejected 2 | . . . . . . . . 1 . 1 Data Loss (minor) 17 | . . 1 . . . . 1 4 9 2 Data Loss (major) 7 | . . . . . . . . 2 3 2 Misfires 3 | . . . . . . . . . 3 . Misdirections 3 | . . . . . . . . . . 3 Targeting Errors 25 | . . . . . 1 . 3 . 4 17 Weapon Failures 3 | . . . . . . . . . 1 2 Overload Shots . | . . . . . . . . . . . Overflow Damage 531 | . . . . . . . 35 . 288 208 Projectiles 25 | . . . . . . . . . . 25 Explosions 47 | . . . . . . . 35 . . 12 Melee 459 | . . . . . . . . . 288 171 Knockbacks 13 | . . . . . . . 1 . 8 4 Impact 6 | . . . . . . . 1 . 1 4 Kinetic 7 | . . . . . . . . . 7 . Secondary . | . . . . . . . . . . . Self-Inflicted Damage 172 | . . . . . . . 101 29 1 41 Shots 4 | . . . . . . . 3 . . 1 Rammed 17 | . . . . . . . 3 13 1 . Targets Rammed 17 | . . . . . . . 3 13 1 . Kicked . | . . . . . . . . . . . Crushed . | . . . . . . . . . . . Highest Temperature 694 | . 60 113 39 . 212 45 694 347 294 183 Average Temperature 124 | . 35 45 16 . 62 24 182 130 125 41 Received Heat Transfer 1274 | . . 14 18 . . . 237 249 171 585 Effects 31 | . . . . . . . 21 7 3 . Shutdowns 2 | . . . . . . . 2 . . . Interference 15 | . . . . . . . 5 7 3 . Matter Decay 2 | . . . . . . . 2 . . . Short Circuit 2 | . . . . . . . 2 . . . Damage (minor) 1 | . . . . . . . 1 . . . Damage (major) 9 | . . . . . . . 9 . . . Siege Activations . | . . . . . . . . . . . Robots Corrupted . | . . . . . . . . . . . Combat Hostiles . | . . . . . . . . . . . Parts Fried 4 | . . . . . . . . . 3 1 Impact Corruptions 8 | . . . . . . . . . 5 3 Robots Melted . | . . . . . . . . . . . Combat Hostiles . | . . . . . . . . . . . Parts Melted . | . . . . . . . . . . . Heat Transferred 970 | . 37 111 . . . . 337 300 . 185 Parts Sabotaged . | . . . . . . . . . . . Parts Stolen . | . . . . . . . . . . . Parts Stripped . | . . . . . . . . . . . Power Chain Reactions . | . . . . . . . . . . . Missiles Intercepted . | . . . . . . . . . . . Alert | -11 -10 -9 -9 -9 -8 -8 -7 -6 -6 -5 ------- Run | Scr Mat Mat Min Exi Min Mat Fac Fac Ext Fac Peak Influence 188 | . 45 188 153 . 71 108 153 149 176 187 Initial 73 | . . 18 73 . . 27 49 27 64 . Average 50 | . 15 68 91 . 34 50 70 52 52 35 Maximum Alert Level . | . . . . . . . . . . . Low Security (%) 100 | 100 100 100 100 . 100 100 100 100 100 100 Level 1 . | . . . . . . . . . . . Level 2 . | . . . . . . . . . . . Level 3 . | . . . . . . . . . . . Level 4 . | . . . . . . . . . . . Level 5 . | . . . . . . . . . . . High Security . | . . . . . . . . . . . Max Security . | . . . . . . . . . . . Squads Dispatched 19 | . 1 . . . . . 3 5 2 8 Investigation 5 | . . . . . . . . 1 2 2 Extermination 5 | . . . . . . . 2 1 . 2 Reinforcement 6 | . 1 . . . . . 1 3 . 1 Assault . | . . . . . . . . . . . Garrison 3 | . . . . . . . . . . 3 Intercept . | . . . . . . . . . . . Construction Impeded 2 | . . . . . . . . 2 . . Haulers Reinforced . | . . . . . . . . . . . Stealth | -11 -10 -9 -9 -9 -8 -8 -7 -6 -6 -5 --------- Run | Scr Mat Mat Min Exi Min Mat Fac Fac Ext Fac Distress Signals 10 | . . . . . . . 3 . 5 2 Communications Jammed . | . . . . . . . . . . . Distress Signals . | . . . . . . . . . . . Times Spotted 103 | . 3 7 3 . 3 3 22 21 12 29 Peak Tracking Total 6 | . 4 3 3 . 3 3 6 6 6 5 Tactical Retreats 21 | . . . 2 . . . 1 7 6 5 Traps | -11 -10 -9 -9 -9 -8 -8 -7 -6 -6 -5 ------- Run | Scr Mat Mat Min Exi Min Mat Fac Fac Ext Fac Traps Triggered 14 | . . 2 . . . . . 3 6 3 Indirectly . | . . . . . . . . . . . Trap Hack Attempts . | . . . . . . . . . . . Triggered . | . . . . . . . . . . . Disarmed . | . . . . . . . . . . . Reprogrammed . | . . . . . . . . . . . Reused . | . . . . . . . . . . . Traps Extracted . | . . . . . . . . . . . Installed . | . . . . . . . . . . . Triggered . | . . . . . . . . . . . Machines | -11 -10 -9 -9 -9 -8 -8 -7 -6 -6 -5 ---------- Run | Scr Mat Mat Min Exi Min Mat Fac Fac Ext Fac Machines Disabled 3 | . . . . . . . . 1 1 1 Max in Single Turn 1 | . . . . . . . . 1 1 1 Machines Sabotaged . | . . . . . . . . . . . Garrisons Compromised . | . . . . . . . . . . . Overloaded Fab Kills . | . . . . . . . . . . . Fab Network Shutdowns . | . . . . . . . . . . . Hacking | -11 -10 -9 -9 -9 -8 -8 -7 -6 -6 -5 --------- Run | Scr Mat Mat Min Exi Min Mat Fac Fac Ext Fac Machines Accessed 29 | . 2 2 . . . 4 3 3 9 6 Terminals 27 | . 2 2 . . . 4 3 2 9 5 Fabricators 2 | . . . . . . . . 1 . 1 Repair Stations . | . . . . . . . . . . . Recycling Units . | . . . . . . . . . . . Scanalyzers . | . . . . . . . . . . . Garrison Access . | . . . . . . . . . . . Total Hacks 63 | . 6 2 . . . 13 5 9 17 11 Successful 18 | . 2 . . . . 4 1 3 4 4 Failed 45 | . 4 2 . . . 9 4 6 13 7 Catastrophic 11 | . 1 1 . . . 1 1 2 4 1 Database Lockouts . | . . . . . . . . . . . Manual 41 | . 6 2 . 1 . 11 5 5 3 8 Terminals 57 | . 6 2 . . . 13 5 5 17 9 Fabricators 6 | . . . . . . . . 4 . 2 Repair Stations . | . . . . . . . . . . . Recycling Units . | . . . . . . . . . . . Scanalyzers . | . . . . . . . . . . . Garrison Access . | . . . . . . . . . . . Terminal Hacks 7 | . . . . . . 1 . 1 4 1 Record 1 | . . . . . . . . . . 1 Open Door 4 | . . . . . . . . . 4 . Branch Access Points 2 | . . . . . . 1 . 1 . . Fabricator Hacks 2 | . . . . . . . . . . 2 Network Status 1 | . . . . . . . . . . 1 Build 1 | . . . . . . . . . . 1 Repair Station Hacks . | . . . . . . . . . . . Recycling Unit Hacks . | . . . . . . . . . . . Scanalyzer . | . . . . . . . . . . . Garrison Access Hacks . | . . . . . . . . . . . Unauthorized Hacks 9 | . 2 . . . . 3 1 2 . 1 Terminals 9 | . 2 . . . . 3 1 2 . 1 Assimilate 2 | . . . . . . . 1 1 . . Botnet 7 | . 2 . . . . 3 . 1 . 1 Fabricators . | . . . . . . . . . . . Repair Stations . | . . . . . . . . . . . Recycling Units . | . . . . . . . . . . . Scanalyzers . | . . . . . . . . . . . Garrison Access . | . . . . . . . . . . . Data Cores Recovered . | . . . . . . . . . . . Used . | . . . . . . . . . . . Hacking Detections 26 | . 2 2 . . . 4 3 3 6 6 Full Trace Events 3 | . . . . . . . . 1 2 . Feedback Events 1 | . . . . . . . . 1 . . Hackware Fried 1 | . . . . . . . . 1 . . Feedback Blocked . | . . . . . . . . . . . Robot Schematics Acquired . | . . . . . . . . . . . Robots Built . | . . . . . . . . . . . Matter . | . . . . . . . . . . . Time . | . . . . . . . . . . . Total Robot Build Rating . | . . . . . . . . . . . Part Schematics Acquired . | . . . . . . . . . . . Parts Built 1 | . . . . . . . . . . 1 Matter 278 | . . . . . . . . . . 278 Time 139 | . . . . . . . . . . 139 Total Part Build Rating 9 | . . . . . . . . . . 9 Parts Repaired . | . . . . . . . . . . . Time . | . . . . . . . . . . . Parts Recycled . | . . . . . . . . . . . Recycled Matter . | . . . . . . . . . . . Retrieved Matter . | . . . . . . . . . . . Retrieved Components . | . . . . . . . . . . . Parts Scanalyzed . | . . . . . . . . . . . Part Schematics Acquired . | . . . . . . . . . . . Parts Damaged . | . . . . . . . . . . . Bothacking | -11 -10 -9 -9 -9 -8 -8 -7 -6 -6 -5 ------------ Run | Scr Mat Mat Min Exi Min Mat Fac Fac Ext Fac Used RIF Installer . | . . . . . . . . . . . Robots Hacked . | . . . . . . . . . . . Non-combat . | . . . . . . . . . . . Combat . | . . . . . . . . . . . Robot Hacks Applied . | . . . . . . . . . . . Relay Couplers Released . | . . . . . . . . . . . Robots Rewired 5 | . . . . . . . . . 5 . Allies Hacked . | . . . . . . . . . . . Hacks Repelled . | . . . . . . . . . . . Allies | -11 -10 -9 -9 -9 -8 -8 -7 -6 -6 -5 -------- Run | Scr Mat Mat Min Exi Min Mat Fac Fac Ext Fac Total Allies 12 | . . . . . . . 1 1 10 . Largest Group 6 | . . . . . . . 1 1 6 4 Highest-Rated Group 175 | . . . . . . . 26 26 175 117 Highest-Rated Ally 37 | . . . . . . . 26 26 37 32 Total Orders . | . . . . . . . . . . . Ally Attacks 77 | . . . . . . . . . 50 27 Total Damage 1788 | . . . . . . . . . 1261 527 Kills 11 | . . . . . . . . . 6 5 Allies Corrupted . | . . . . . . . . . . . Allies Melted . | . . . . . . . . . . . Intel | -11 -10 -9 -9 -9 -8 -8 -7 -6 -6 -5 ------- Run | Scr Mat Mat Min Exi Min Mat Fac Fac Ext Fac Robot Analysis Total . | . . . . . . . . . . . Derelict Logs Recovered 1 | . . . 1 . . . . . . . Drone Launches . | . . . . . . . . . . . Drone Recoveries . | . . . . . . . . . . . Exploration | -11 -10 -9 -9 -9 -8 -8 -7 -6 -6 -5 ------------- Run | Scr Mat Mat Min Exi Min Mat Fac Fac Ext Fac Turns Passed 6953 | 60 139 168 75 204 140 111 1238 1191 1628 1999 Spaces Moved 4734 | 56 130 156 54 229 148 124 958 1082 939 858 Core 1203 | 4 . . . . . . 190 913 95 1 Treads 590 | . . . . . . . 12 . . 578 Legs 59 | . . . . . . . . 1 14 44 Wheels 2507 | 52 130 156 54 229 148 124 756 . 816 42 Hover 375 | . . . . . . . . 168 14 193 Flight . | . . . . . . . . . . . Fastest Speed 50 | 50 90 80 90 80 80 80 50 50 50 60 Average Speed 95 | 86 90 82 90 84 80 80 95 57 101 146 Slowest Speed 750 | 100 90 90 90 90 80 80 550 120 750 250 Overloaded Moves . | . . . . . . . . . . . Propulsion Burnouts . | . . . . . . . . . . . Robots Hopped . | . . . . . . . . . . . Cave-ins Triggered 5 | . . . . . . . . 1 . 4 Exploration Rate (%) 29 | 5 25 18 18 62 33 16 28 25 70 29 Regions Visited 10 Branch Regions 4 Pre-discovered Areas . | . . . . . . . . . . . Known Exits Taken 1 | . . . . . . . . 1 . . Unknown Exits Taken 9 | 1 1 1 1 1 1 1 1 . 1 . Scrap Searched . | . . . . . . . . . . . Spaces Dug 89 | . . . 3 . 1 . . 40 11 34 Terrain Destroyed 238 | . . . 3 . 1 . 15 117 22 80 Melee 34 | . . . . . . . . . . 34 Projectile 71 | . . . 3 . 1 . 1 41 22 3 AOE 133 | . . . . . . . 14 76 . 43 Terrain Rammed . | . . . . . . . . . . . Walls Destroyed . | . . . . . . . . . . . Machines Disabled . | . . . . . . . . . . . Actions | -11 -10 -9 -9 -9 -8 -8 -7 -6 -6 -5 --------- Run | Scr Mat Mat Min Exi Min Mat Fac Fac Ext Fac Total 6643 | 64 148 175 63 238 160 128 1206 1583 1530 1348 Wait 1327 | . 10 . 3 . 9 . 186 401 428 290 Move 4723 | 55 129 155 53 228 147 123 957 1081 938 857 Hop . | . . . . . . . . . . . Pick Up 21 | 3 3 . . 1 . . 2 3 2 7 Fast Attach 94 | 6 1 6 . 4 . 1 8 18 24 26 Attach 22 | . . 2 . . . 1 3 4 2 10 Detach 17 | . 1 3 . . . . 2 3 6 2 Swap 7 | . 1 1 . . . . . . . 5 Drop 40 | . 1 1 . 5 . . 6 8 6 13 Fire 198 | . 2 7 7 . 4 3 38 52 37 48 Melee 112 | . . . . . . . . . 23 89 Ram 17 | . . . . . . . 3 13 1 . Kick . | . . . . . . . . . . . Crush . | . . . . . . . . . . . Escape Stasis 33 | . . . . . . . . . 32 1 Rewire 32 | . . . . . . . 1 . 31 . Trap . | . . . . . . . . . . . Miscellaneous . | . . . . . . . . . . . Route ------- -11/Scrapyard -10/Materials -9/Materials -9/Mines -9/Exiles -8/Mines -8/Materials (discovered 3 exits: *Fac / Sto x2) -7/Factory (discovered 2 exits: *Fac / [*Low]) -6/Factory (discovered 4 exits: Low x2 / *Ext x2) -6/Extension (discovered 2 exits: *Fac / [*Cet]) -5/Factory (discovered 1 exit: [*Upp]) History --------- Turn | Location | Event 7 | -11/Scrapyard | Discovered new exit (range 15) 61 | -11/Scrapyard | Entered Materials 195 | -10/Materials | Discovered new exit (range 6) 200 | -10/Materials | Entered another Materials area 200 | -9/Materials | Evolved 2 slots: Propulsion x1, Weapon x1 345 | -9/Materials | Discovered new exit (range 16) 368 | -9/Materials | Entered Mines 380 | -9/Mines | Learned Materials terminal intel 439 | -9/Mines | Deemed a non-threat by the Exiles lab entrance 440 | -9/Mines | Discovered new exit (range 5) 443 | -9/Mines | Entered Exiles 465 | -9/Exiles | Met 8R-AWN 481 | -9/Exiles | Met EX-HEX 505 | -9/Exiles | Met EX-BIN 516 | -9/Exiles | Aligned with FarCom system 516 | -9/Exiles | Given EX-Vault access code 538 | -9/Exiles | Opened EX-Vault 543 | -9/Exiles | Found Prototype Device 543 | -9/Exiles | Identified PSU Rigger 547 | -9/Exiles | Found Prototype Energy Cannon 547 | -9/Exiles | Identified Latent Energy Streamer 554 | -9/Exiles | Found Prototype Processor 554 | -9/Exiles | Identified 0b10 Alert Chip 588 | -9/Exiles | Warned to stay clear of 0b10 Research branches 608 | -9/Exiles | Met EX-DEC 624 | -9/Exiles | Build established: Mutant 637 | -9/Exiles | Discovered new exit (range 11) 647 | -9/Exiles | Left Exiles lab with 0b10 Alert Chip 647 | -9/Exiles | Entered Mines 780 | -8/Mines | Discovered new exit (range 7) 787 | -8/Mines | Entered Materials 787 | -8/Materials | Evolved 2 slots: Utility x1, Weapon x1 788 | -8/Materials | Loaded intel: 12 terminal locations 885 | -8/Materials | Discovered new exit (range 14) 890 | -8/Materials | Identified exit to Storage 898 | -8/Materials | Entered Factory 898 | -7/Factory | Evolved 2 slots: Power x1, Utility x1 1089 | -7/Factory | Build established: Skirmisher 1542 | -7/Factory | Discovered new exit (range 16) 1807 | -7/Factory | Lost 3 parts (1p1u1w) 2052 | -7/Factory | Discovered new exit (range 15) 2078 | -7/Factory | Lost 8 parts (1p1n2u4w) 2112 | -7/Factory | Core integrity fell below 50% 2136 | -7/Factory | Entered another Factory area 2136 | -6/Factory | Evolved 2 slots: Power x2 2239 | -6/Factory | Build established: Mutant 2327 | -6/Factory | Crushed by falling debris 2514 | -6/Factory | Lost 3 parts (1p1n1u) 2740 | -6/Factory | Core integrity fell below 50% 2918 | -6/Factory | Identified exit to Lower Caves 2918 | -6/Factory | Identified exit to Extension 3027 | -6/Factory | Imp. Hacking Suite fried by hacking feedback 3327 | -6/Factory | Entered Extension 3353 | -6/Extension | Rescued a captive Derelict 3354 | -6/Extension | Rescued a captive Derelict 3858 | -6/Extension | Rescued a captive Derelict 3985 | -6/Extension | Rescued a captive Derelict 4261 | -6/Extension | Build established: Scavenger-Mutant 4432 | -6/Extension | Core integrity fell below 20% 4455 | -6/Extension | Lost 4 parts (1n1u2w) 4702 | -6/Extension | Disrupted transfer network 4804 | -6/Extension | Rescued a captive Derelict 4902 | -6/Extension | Discovered new exit (range 10) 4903 | -6/Extension | Discovered new exit (range 6) 4955 | -6/Extension | Entered Factory 4955 | -5/Factory | Accompanied by 4 allies 4955 | -5/Factory | Evolved 2 slots: Utility x2 5203 | -5/Factory | Build established: Mutant 5279 | -5/Factory | Fabricated Enh. Nova Cannon (x1) 5343 | -5/Factory | Garrison activated, responded to threat 6304 | -5/Factory | Crushed by falling debris 6363 | -5/Factory | Crushed by falling debris 6363 | -5/Factory | System corruption reached 10% 6393 | -5/Factory | Crushed by falling debris 6424 | -5/Factory | Lost 4 parts (2u2w) 6603 | -5/Factory | Crushed by falling debris 6646 | -5/Factory | Core integrity fell below 50% 6701 | -5/Factory | Lost 3 parts (1n2u) 6843 | -5/Factory | Core integrity fell below 20% 6883 | -5/Factory | Lost 5 parts (1n3u1w) 6942 | -5/Factory | Discovered new exit (range 14) 6954 | -5/Factory | Destroyed by Y-64 Sentinel with Wave Gun Last Messages --------------- 06900_ Acquired System Backup Module. 06902_ System Backup Module purges 1% of system corruption (21%). 06903_ Acquired System Backup Module. 06917_ System Backup Module purges 1% of system corruption (20%). 06919_ System corrupted: Energy discharge (-36). 06942_ EXIT=FOUND 06944_ Penetrated by Slug. 06945_ K-01 Serf destroyed. 06946_ K-01 Serf collects debris. 06947_ System Backup Module purges 1% of system corruption (19%). 06948_ Destroyed Wheel. 06948_ T-07 Excavator destroyed. 06948_ K-01 Serf destroyed. 06949_ K-01 Serf collects debris. 06951_ Slug penetrates R-10 Processor. 06951_ System corrupted: Lrn. Missile Launcher targeting data glitched. 06951_ Destroyed Com. Wheel. 06951_ R-10 Processor destroyed. 06951_ K-01 Serf destroyed. 06951_ W-25 Informer destroyed. Map ----- +----------------------------------------------------+ | ?????????????????????????????????????????????????? | | ?????????????????????????????????????????????????? | | ?????????????????????????????????????????????????? | | ?????????????????????????????????????????????????? | | ?????????????????????????????????????????????????? | | ?????????????????????????????????????????????????? | | ????????????????????????????????????? ???????????? | | ????????????????????????????????????? ???????????? | | ????????????????????????????????????? ???????????? | | ????????????????????????????????????? ??????????? | | ????????????????????????????????????? "????#?????? | | ????????????????????????????????????? """" #?????? | | ????????????????????????????????????? """" #?????? | | ????????????????????????????????????# """" #?????? | | ????????????????????????????????????# g ??????? | | ??????????????????????#########?????# ???????? | | ??????????????????????# #?????# ?????????? | | ??????????????????????# #######+############ | | ??????????????????????# | | ??????????????????????# | | ??????????????????????# | | ??????????????????????# #######+###########? | | ??????????? ?????##### # #?????? | | ?????????? # ## #?????? | | ?????????? ! ## #?????? | | ?????????? [ % = @ ## """ #?????? | | ?????????? % ## """ #?????? | | ?????????? < Y % ## ! """ #?????? | | ??????????? k ^ ## !! #?????? | | ??????????? *%= ## """ ##????? | | ???????????? # # # # #### """ #????? | | ????????????p! ?# ?##??# " "" """ ##????? | | ???????????? ??# ? ?????# " S"" ##????? | | ?????????????????# ? ?????# """" ###???? | | ?????????????????#[ ?! ?????############## ##### | | ?????????????????# ? ???????????#??????## | | ?????????????????# ?? ???????????????????###### | | ?????????????????# ?? ?????????????????????????? | | ??????????????????!?? ?????????????????????????? | | ????????????????????? ?????????????????????????? | | ???????????????????????#?????????????????????????? | | ?????????????????????????????????????????????????? | | ?????????????????????????????????????????????????? | | ?????????????????????????????????????????????????? | | ?????????????????????????????????????????????????? | | ?????????????????????????????????????????????????? | | ?????????????????????????????????????????????????? | | ?????????????????????????????????????????????????? | | ?????????????????????????????????????????????????? | | ?????????????????????????????????????????????????? | +----------------------------------------------------+ Best States ------------- Heat Dissipation 78 Coolant Potential 80 Energy Generation 29 Energy Capacity 490 Matter Stores 300 Matter Capacity 300 Sight Range 16 Robot Scan Range 13 Terrain Scan Range 24 Terrain Scan Density 210 Armor Coverage 600 Resistance: KI 20 Weapon Cycling 20 Melee Speed Boost 50 Phase Shifting 5 Evasion (%) 55 Targeting Accuracy 5 Recoil Reduction 2 Particle Charging 20 Offensive Hacking 12 Defensive Hacking 10 Item Schematics ----------------- None Robot Schematics ------------------ None Fabricated ------------ Enh. Nova Cannon | x1 | -5/Factory | Preloaded Alien Tech Used ----------------- None Achievements -------------- None Challenges ------------ None Game ------ Seed ShieldTachyonRefractor Manual? 0 Play Time 01:08:04 Cumulative 48.8 hours Start 2021.10.26 @ 17:18:35 End 2021.10.26 @ 18:27:19 Sessions 1 Manual Loads 0 Difficulty Rogue Special Mode None Game No. 54 Rogue 54 Adventurer 0 Explorer 0 Win Type - Total 0 Types 0/0/0/0/0/0/0/0/0 Lore% 40 Gallery% 43 Achievement% 30 Wizard Run 0 Options --------- ASCII 0 Keyboard 1 Movement Numpad Keybinds 0 Fullscreen 2 Font 36/X11 Map View 76x50 Tactical HUD 1 Map Filters NONE Filters NONE Steam 1 RUN: eae6d353-c080-4335-a7dc-3dc150571940